[Event "*** Titled Tuesday Blitz"]
[Site "Chess.com"]
[Date "2021.03.09"]
[Round "8"]
[White "SantoBlue"]
[Black "GigaQuparadze"]
[Result "1-0"]
[WhiteElo "2868"]
[BlackElo "2954"]
[TimeControl "180+1"]
[EndTime "11:33:37 PST"]
[Termination "SantoBlue won by resignation"]

1. e4 {[%clk 0:02:59.7]} 1... c5 {[%clk 0:02:58.8]} 2. Nc3 {[%clk 0:03:00.1]}
2... e6 {[%clk 0:02:58.5]} 3. g3 {[%clk 0:03:00.6]} 3... a6 {[%clk 0:02:58.6]}
4. Bg2 {[%clk 0:03:00.3]} 4... b5 {[%clk 0:02:59.1]} 5. Nh3 {[%clk 0:02:49.4]}
5... Bb7 {[%clk 0:02:58.5]} 6. O-O {[%clk 0:02:49.1]} 6... b4 {[%clk 0:02:55.1]}
7. Ne2 {[%clk 0:02:48.6]} 7... d5 {[%clk 0:02:54]} 8. d3 {[%clk 0:02:44.8]} 8...
dxe4 {[%clk 0:02:50.8]} 9. Ng5 {[%clk 0:02:43.2]} 9... Nf6 {[%clk 0:02:50.4]}
10. Nf4 {[%clk 0:02:41.7]} 10... Be7 {[%clk 0:02:43.8]} 11. Nh5 {[%clk
0:02:41.2]} 11... Nxh5 {[%clk 0:02:27.5]} 12. Qxh5 {[%clk 0:02:40.9]} 12... Bxg5
{[%clk 0:02:27.6]} 13. Bxg5 {[%clk 0:02:39.8]} 13... Qc7 {[%clk 0:02:27.7]} 14.
Bf4 {[%clk 0:02:36.3]} 14... Qe7 {[%clk 0:02:24.5]} 15. dxe4 {[%clk 0:02:33.4]}
15... Nc6 {[%clk 0:02:17.8]} 16. Rad1 {[%clk 0:02:21]} 16... g6 {[%clk
0:02:12.8]} 17. Qh6 {[%clk 0:02:18.2]} 17... Nd4 {[%clk 0:01:54.1]} 18. Be5
{[%clk 0:02:06.3]} 18... f6 {[%clk 0:01:54.1]} 19. Bxd4 {[%clk 0:02:03.8]} 19...
cxd4 {[%clk 0:01:54.1]} 20. Rxd4 {[%clk 0:02:04.7]} 20... e5 {[%clk 0:01:54.2]}
21. Rd2 {[%clk 0:02:01.1]} 21... Rd8 {[%clk 0:01:33.3]} 22. Rxd8+ {[%clk
0:01:48.1]} 22... Kxd8 {[%clk 0:01:34.2]} 23. Qe3 {[%clk 0:01:48.1]} 23... Kc7
{[%clk 0:01:32.5]} 24. c3 {[%clk 0:01:48.2]} 24... Kb8 {[%clk 0:01:31.8]} 25.
Qb6 {[%clk 0:01:43.1]} 25... bxc3 {[%clk 0:01:30.8]} 26. bxc3 {[%clk 0:01:44]}
26... Rd8 {[%clk 0:01:27.9]} 27. Rb1 {[%clk 0:01:42.2]} 27... Rd6 {[%clk
0:01:27.9]} 28. Qe3 {[%clk 0:01:39.2]} 28... Qd7 {[%clk 0:01:23]} 29. Bf1 {[%clk
0:01:25.9]} 29... Ka8 {[%clk 0:01:19]} 30. f3 {[%clk 0:01:11.3]} 30... Qc7
{[%clk 0:01:16.2]} 31. Be2 {[%clk 0:01:08.2]} 31... Qa5 {[%clk 0:01:12.5]} 32.
Rb2 {[%clk 0:01:02.6]} 32... Qa3 {[%clk 0:01:10.5]} 33. Qc1 {[%clk 0:00:54.2]}
33... Rb6 {[%clk 0:00:54.2]} 34. Rc2 {[%clk 0:00:49.2]} 34... Qc5+ {[%clk
0:00:54]} 35. Kg2 {[%clk 0:00:48.3]} 35... f5 {[%clk 0:00:54.4]} 36. exf5 {[%clk
0:00:45.9]} 36... gxf5 {[%clk 0:00:54.5]} 37. Qg5 {[%clk 0:00:45.4]} 37... e4
{[%clk 0:00:54.4]} 38. Qd8+ {[%clk 0:00:43.4]} 38... Ka7 {[%clk 0:00:52.2]} 39.
Qd4 {[%clk 0:00:44]} 39... Qc6 {[%clk 0:00:49.8]} 40. Kf2 {[%clk 0:00:28.2]}
40... exf3 {[%clk 0:00:50]} 41. Bd3 {[%clk 0:00:28.2]} 41... Ka8 {[%clk
0:00:48.7]} 42. Bxf5 {[%clk 0:00:25.6]} 42... Rb5 {[%clk 0:00:47]} 43. Qd8+
{[%clk 0:00:23.3]} 43... Ka7 {[%clk 0:00:46.9]} 44. Qd4+ {[%clk 0:00:23.7]}
44... Kb8 {[%clk 0:00:46.8]} 45. Bd3 {[%clk 0:00:23.5]} 45... Rh5 {[%clk
0:00:42.4]} 46. h4 {[%clk 0:00:22.2]} 46... Qc7 {[%clk 0:00:41.5]} 47. Rb2
{[%clk 0:00:21.7]} 47... Ra5 {[%clk 0:00:39.2]} 48. Be4 {[%clk 0:00:19.3]} 48...
Rb5 {[%clk 0:00:39.4]} 49. Rxb5 {[%clk 0:00:19.5]} 49... axb5 {[%clk 0:00:40.3]}
50. Bxb7 {[%clk 0:00:19.8]} 50... Kxb7 {[%clk 0:00:40.7]} 51. Kxf3 {[%clk
0:00:17.7]} 51... Qf7+ {[%clk 0:00:40.6]} 52. Ke3 {[%clk 0:00:17.4]} 52... Qxa2
{[%clk 0:00:40]} 53. Qe4+ {[%clk 0:00:17.9]} 53... Kb6 {[%clk 0:00:40]} 54. Qxh7
{[%clk 0:00:17.9]} 54... Qg2 {[%clk 0:00:36.7]} 55. Qg6+ {[%clk 0:00:17.1]}
55... Kc5 {[%clk 0:00:34.1]} 56. h5 {[%clk 0:00:10.4]} 56... Qg1+ {[%clk
0:00:33]} 57. Kf4 {[%clk 0:00:10.4]} 57... Qc1+ {[%clk 0:00:32.5]} 58. Kg4
{[%clk 0:00:09.6]} 58... Qd1+ {[%clk 0:00:32.7]} 59. Kh4 {[%clk 0:00:09.3]}
59... Qh1+ {[%clk 0:00:32.5]} 60. Kg5 {[%clk 0:00:09.2]} 60... Qc1+ {[%clk
0:00:32.6]} 61. Kf5 {[%clk 0:00:09.4]} 61... Qc2+ {[%clk 0:00:32.4]} 62. Ke6
{[%clk 0:00:07.8]} 62... Qxc3 {[%clk 0:00:31.6]} 63. h6 {[%clk 0:00:08.4]} 63...
Qc4+ {[%clk 0:00:26.8]} 64. Ke7 {[%clk 0:00:08.2]} 64... Qe2+ {[%clk 0:00:21.7]}
65. Kf7 {[%clk 0:00:07.9]} 65... Qf2+ {[%clk 0:00:21.2]} 66. Kg7 {[%clk
0:00:06.8]} 66... Qd4+ {[%clk 0:00:20.9]} 67. Qf6 {[%clk 0:00:07.2]} 67... Qd7+
{[%clk 0:00:20.8]} 68. Kf8 {[%clk 0:00:05.3]} 68... Qc8+ {[%clk 0:00:20]} 69.
Kf7 {[%clk 0:00:05.9]} 69... Qh3 {[%clk 0:00:15.5]} 70. Qg5+ {[%clk 0:00:05.5]}
70... Kb6 {[%clk 0:00:15.3]} 71. Qg6+ {[%clk 0:00:04.5]} 71... Ka5 {[%clk
0:00:13.7]} 72. h7 {[%clk 0:00:04.2]} 72... Qd7+ {[%clk 0:00:14.1]} 73. Kg8
{[%clk 0:00:04.7]} 73... Qd5+ {[%clk 0:00:13.8]} 74. Kg7 {[%clk 0:00:03.8]}
74... Qb7+ {[%clk 0:00:11.4]} 75. Kh6 {[%clk 0:00:04.2]} 75... Qh1+ {[%clk
0:00:11.3]} 76. Kg5 {[%clk 0:00:04.8]} 76... Qc1+ {[%clk 0:00:11.3]} 77. Kh4
{[%clk 0:00:04.7]} 77... Qh1+ {[%clk 0:00:11.4]} 78. Kg5 {[%clk 0:00:05.2]}
78... Qc1+ {[%clk 0:00:11.4]} 79. Kf6 {[%clk 0:00:05.6]} 79... Qc3+ {[%clk
0:00:11.3]} 80. Kf7 {[%clk 0:00:06]} 80... Qc7+ {[%clk 0:00:11.3]} 81. Kg8
{[%clk 0:00:06.4]} 81... Qb8+ {[%clk 0:00:11.2]} 82. Kg7 {[%clk 0:00:06.9]}
82... Qb7+ {[%clk 0:00:11.5]} 83. Qf7 {[%clk 0:00:07]} 83... Qf3 {[%clk
0:00:11.4]} 84. Qxf3 {[%clk 0:00:06.6]} 1-0

[Event "*** Titled Tuesday Blitz"]
[Site "Chess.com"]
[Date "2021.03.09"]
[Round "8"]
[White "Diamantidis_13"]
[Black "IMAghasiyevKamal"]
[Result "1/2-1/2"]
[WhiteElo "2374"]
[BlackElo "2488"]
[TimeControl "180+1"]
[EndTime "11:33:40 PST"]
[Termination "Game drawn - insufficient material"]

1. d4 {[%clk 0:03:00.9]} 1... d5 {[%clk 0:02:59.6]} 2. c4 {[%clk 0:03:01.3]}
2... e6 {[%clk 0:02:59.4]} 3. Nf3 {[%clk 0:03:02]} 3... Nf6 {[%clk 0:02:58.3]}
4. g3 {[%clk 0:03:02.6]} 4... Be7 {[%clk 0:02:56.6]} 5. Bg2 {[%clk 0:03:02.5]}
5... O-O {[%clk 0:02:56.4]} 6. O-O {[%clk 0:03:03.2]} 6... c6 {[%clk 0:02:56.6]}
7. Qc2 {[%clk 0:03:03.2]} 7... b6 {[%clk 0:02:55.9]} 8. Rd1 {[%clk 0:03:03.7]}
8... Bb7 {[%clk 0:02:55.9]} 9. b3 {[%clk 0:03:04.1]} 9... Na6 {[%clk 0:02:50.2]}
10. a3 {[%clk 0:03:02.4]} 10... Rc8 {[%clk 0:02:48.3]} 11. Nc3 {[%clk
0:03:01.5]} 11... c5 {[%clk 0:02:44.5]} 12. Ne5 {[%clk 0:02:26.8]} 12... cxd4
{[%clk 0:02:27.8]} 13. Rxd4 {[%clk 0:02:24.9]} 13... Nc5 {[%clk 0:02:15.9]} 14.
Bb2 {[%clk 0:02:06.4]} 14... Bd6 {[%clk 0:02:06]} 15. Ng4 {[%clk 0:02:03.7]}
15... Nfe4 {[%clk 0:01:54.3]} 16. Nxe4 {[%clk 0:01:19.5]} 16... Nxe4 {[%clk
0:01:52.9]} 17. Bxe4 {[%clk 0:01:19]} 17... dxe4 {[%clk 0:01:53.1]} 18. Rad1
{[%clk 0:01:06.7]} 18... Qg5 {[%clk 0:01:52.7]} 19. Nf6+ {[%clk 0:00:43.5]}
19... Qxf6 {[%clk 0:01:50.2]} 20. Rxd6 {[%clk 0:00:43.7]} 20... Qf5 {[%clk
0:01:44.9]} 21. Rd7 {[%clk 0:00:31.8]} 21... Bc6 {[%clk 0:01:24.5]} 22. Rxa7
{[%clk 0:00:31.3]} 22... b5 {[%clk 0:01:24.5]} 23. Qc3 {[%clk 0:00:30.6]} 23...
f6 {[%clk 0:01:23.9]} 24. c5 {[%clk 0:00:19]} 24... Bd5 {[%clk 0:01:21.7]} 25.
b4 {[%clk 0:00:19.4]} 25... e3 {[%clk 0:01:16.2]} 26. Qxe3 {[%clk 0:00:18.8]}
26... Qc2 {[%clk 0:01:16.1]} 27. Qd2 {[%clk 0:00:14.8]} 27... Qg6 {[%clk
0:01:09.1]} 28. f3 {[%clk 0:00:12.5]} 28... Bb3 {[%clk 0:01:04.3]} 29. Rf1
{[%clk 0:00:09.6]} 29... Rcd8 {[%clk 0:00:59.8]} 30. Qf4 {[%clk 0:00:08.7]}
30... Bc4 {[%clk 0:00:57.4]} 31. c6 {[%clk 0:00:06.3]} 31... e5 {[%clk
0:00:54.6]} 32. Qg4 {[%clk 0:00:05.9]} 32... Qxg4 {[%clk 0:00:51.3]} 33. fxg4
{[%clk 0:00:06.8]} 33... Rc8 {[%clk 0:00:51.8]} 34. c7 {[%clk 0:00:06.7]} 34...
Rf7 {[%clk 0:00:51.4]} 35. a4 {[%clk 0:00:06.7]} 35... Rfxc7 {[%clk 0:00:51]}
36. Rxc7 {[%clk 0:00:06.2]} 36... Rxc7 {[%clk 0:00:51.5]} 37. a5 {[%clk
0:00:06.8]} 37... Bxe2 {[%clk 0:00:51.1]} 38. Rc1 {[%clk 0:00:06.2]} 38... Rxc1+
{[%clk 0:00:48.9]} 39. Bxc1 {[%clk 0:00:06.5]} 39... Bxg4 {[%clk 0:00:49.5]} 40.
a6 {[%clk 0:00:07]} 40... Kf7 {[%clk 0:00:47.7]} 41. Kf2 {[%clk 0:00:07.4]}
41... Bc8 {[%clk 0:00:47.5]} 42. a7 {[%clk 0:00:08.2]} 42... Bb7 {[%clk
0:00:47.8]} 43. Ke3 {[%clk 0:00:08.4]} 43... Ke6 {[%clk 0:00:48.3]} 44. Kd3
{[%clk 0:00:07.7]} 44... Kd5 {[%clk 0:00:48.3]} 45. Be3 {[%clk 0:00:07.7]} 45...
f5 {[%clk 0:00:45.9]} 46. Bc5 {[%clk 0:00:08.6]} 46... g5 {[%clk 0:00:45.3]} 47.
Be7 {[%clk 0:00:07.1]} 47... g4 {[%clk 0:00:26.4]} 48. Bg5 {[%clk 0:00:05.5]}
48... Ke6 {[%clk 0:00:23.7]} 49. Be3 {[%clk 0:00:05.2]} 49... h5 {[%clk
0:00:21.1]} 50. Bd2 {[%clk 0:00:05.5]} 50... h4 {[%clk 0:00:19.9]} 51. Be3
{[%clk 0:00:05.3]} 51... h3 {[%clk 0:00:16.7]} 52. Bf2 {[%clk 0:00:05.4]} 52...
Kd5 {[%clk 0:00:16.4]} 53. Be3 {[%clk 0:00:05.5]} 53... f4 {[%clk 0:00:15.8]}
54. Bf2 {[%clk 0:00:05.9]} 54... e4+ {[%clk 0:00:15.3]} 55. Ke2 {[%clk
0:00:05.7]} 55... e3 {[%clk 0:00:14.5]} 56. Be1 {[%clk 0:00:05.8]} 56... Ke4
{[%clk 0:00:09.9]} 57. gxf4 {[%clk 0:00:05.9]} 57... Kxf4 {[%clk 0:00:10.8]} 58.
Bg3+ {[%clk 0:00:05.6]} 58... Ke4 {[%clk 0:00:11.2]} 59. Bc7 {[%clk 0:00:04.3]}
59... Kd4 {[%clk 0:00:11.2]} 60. Ke1 {[%clk 0:00:04.1]} 60... Kc4 {[%clk
0:00:11.4]} 61. Ke2 {[%clk 0:00:03.2]} 61... Kxb4 {[%clk 0:00:11.3]} 62. Kxe3
{[%clk 0:00:03.7]} 62... Kc4 {[%clk 0:00:10.2]} 63. Kf4 {[%clk 0:00:04]} 63...
b4 {[%clk 0:00:09.9]} 64. Kxg4 {[%clk 0:00:04.3]} 64... Kd5 {[%clk 0:00:10.5]}
65. Ba5 {[%clk 0:00:03.8]} 65... b3 {[%clk 0:00:10.7]} 66. Bc3 {[%clk
0:00:04.4]} 66... Kc6 {[%clk 0:00:10.9]} 67. Bb2 {[%clk 0:00:05.2]} 67... Kb6
{[%clk 0:00:11.8]} 68. Kxh3 {[%clk 0:00:05.7]} 68... Kxa7 {[%clk 0:00:12.2]} 69.
Kg3 {[%clk 0:00:06.6]} 69... Kb6 {[%clk 0:00:13.1]} 70. Kf4 {[%clk 0:00:07.2]}
70... Kc5 {[%clk 0:00:14]} 71. Ke3 {[%clk 0:00:08.1]} 71... Kc4 {[%clk
0:00:12.8]} 72. Kf4 {[%clk 0:00:07.7]} 72... Kd3 {[%clk 0:00:12.6]} 73. h4
{[%clk 0:00:07.9]} 73... Kc2 {[%clk 0:00:13]} 74. Be5 {[%clk 0:00:07.7]} 74...
Kd3 {[%clk 0:00:13.3]} 75. h5 {[%clk 0:00:07.6]} 75... Be4 {[%clk 0:00:13.8]}
76. h6 {[%clk 0:00:07]} 76... Bh7 {[%clk 0:00:13.8]} 77. Kg5 {[%clk 0:00:07.1]}
77... Be4 {[%clk 0:00:13.7]} 78. Kf6 {[%clk 0:00:06.8]} 78... Kc4 {[%clk
0:00:14]} 79. Kg7 {[%clk 0:00:06.8]} 79... Kd5 {[%clk 0:00:14.3]} 80. Bb2 {[%clk
0:00:06.8]} 80... Ke6 {[%clk 0:00:14.1]} 81. h7 {[%clk 0:00:06.5]} 81... Bxh7
{[%clk 0:00:14.1]} 82. Kxh7 {[%clk 0:00:07.4]} 82... Kf5 {[%clk 0:00:13.9]} 83.
Kh6 {[%clk 0:00:07.3]} 83... Ke4 {[%clk 0:00:14.8]} 84. Bc3 {[%clk 0:00:07.5]}
84... Kd3 {[%clk 0:00:15.7]} 85. Bf6 {[%clk 0:00:07.7]} 85... Ke4 {[%clk
0:00:15.5]} 86. Bg7 {[%clk 0:00:07.5]} 86... Kd5 {[%clk 0:00:15.8]} 87. Kg5
{[%clk 0:00:07.8]} 87... b2 {[%clk 0:00:16.2]} 88. Bxb2 {[%clk 0:00:02.7]}
1/2-1/2

[Event "*** Titled Tuesday Blitz"]
[Site "Chess.com"]
[Date "2021.03.09"]
[Round "8"]
[White "mbojan"]
[Black "Cherone"]
[Result "1-0"]
[WhiteElo "2624"]
[BlackElo "2471"]
[TimeControl "180+1"]
[EndTime "11:33:57 PST"]
[Termination "mbojan won on time"]

1. g3 {[%clk 0:03:00.9]} 1... d5 {[%clk 0:02:59.6]} 2. Bg2 {[%clk 0:03:01.7]}
2... Nc6 {[%clk 0:02:59.4]} 3. d3 {[%clk 0:03:02.6]} 3... e5 {[%clk 0:02:59.3]}
4. a3 {[%clk 0:03:03.2]} 4... a5 {[%clk 0:02:58.3]} 5. Nc3 {[%clk 0:03:03.7]}
5... Nf6 {[%clk 0:02:57.6]} 6. Bg5 {[%clk 0:03:03.4]} 6... d4 {[%clk 0:02:46.4]}
7. Ne4 {[%clk 0:02:58.8]} 7... Be7 {[%clk 0:02:45.2]} 8. Nxf6+ {[%clk
0:02:58.9]} 8... Bxf6 {[%clk 0:02:44.9]} 9. Bd2 {[%clk 0:02:57.3]} 9... O-O
{[%clk 0:02:44]} 10. Nf3 {[%clk 0:02:57.9]} 10... Be6 {[%clk 0:02:39.4]} 11. O-O
{[%clk 0:02:58.6]} 11... Qd7 {[%clk 0:02:31.6]} 12. c3 {[%clk 0:02:58.7]} 12...
a4 {[%clk 0:02:25.4]} 13. cxd4 {[%clk 0:02:58]} 13... exd4 {[%clk 0:02:25.2]}
14. Rc1 {[%clk 0:02:57.6]} 14... Bd5 {[%clk 0:02:19.5]} 15. Bf4 {[%clk
0:02:46.3]} 15... Rfe8 {[%clk 0:02:15.9]} 16. Rc5 {[%clk 0:02:42.4]} 16... Bb3
{[%clk 0:01:52.8]} 17. Qd2 {[%clk 0:02:36.9]} 17... Re7 {[%clk 0:01:21.6]} 18.
Bg5 {[%clk 0:02:22.2]} 18... Bxg5 {[%clk 0:01:17.5]} 19. Nxg5 {[%clk 0:02:23.1]}
19... Rae8 {[%clk 0:01:12.9]} 20. Re1 {[%clk 0:02:05.2]} 20... Re5 {[%clk
0:01:08.4]} 21. Bxc6 {[%clk 0:01:44.8]} 21... bxc6 {[%clk 0:01:04.8]} 22. Rxe5
{[%clk 0:01:45.5]} 22... Rxe5 {[%clk 0:01:04.4]} 23. Nf3 {[%clk 0:01:46.4]}
23... Rb5 {[%clk 0:00:46.6]} 24. Qf4 {[%clk 0:01:43.9]} 24... Bd5 {[%clk
0:00:36.3]} 25. Qxd4 {[%clk 0:01:27.6]} 25... c5 {[%clk 0:00:36.3]} 26. Qxa4
{[%clk 0:01:23.8]} 26... h6 {[%clk 0:00:33.2]} 27. Ne5 {[%clk 0:01:15.9]} 27...
Qe8 {[%clk 0:00:31.2]} 28. e4 {[%clk 0:01:10.9]} 28... Bb3 {[%clk 0:00:27.7]}
29. Qa6 {[%clk 0:00:28.7]} 29... Rb6 {[%clk 0:00:26.5]} 30. Qa5 {[%clk
0:00:29.2]} 30... Qxe5 {[%clk 0:00:26]} 31. Rc1 {[%clk 0:00:30]} 31... Rf6
{[%clk 0:00:21.1]} 32. Qc3 {[%clk 0:00:20.9]} 32... Qxc3 {[%clk 0:00:14.7]} 33.
Rxc3 {[%clk 0:00:21.8]} 33... Rb6 {[%clk 0:00:13.5]} 34. Rxc5 {[%clk 0:00:21.5]}
34... c6 {[%clk 0:00:14.1]} 35. Kf1 {[%clk 0:00:19.5]} 35... Be6 {[%clk
0:00:13.2]} 36. b4 {[%clk 0:00:19.2]} 36... Ra6 {[%clk 0:00:12.8]} 37. Rc3
{[%clk 0:00:17.8]} 37... Kf8 {[%clk 0:00:13.2]} 38. d4 {[%clk 0:00:18.3]} 38...
Ke7 {[%clk 0:00:10.9]} 39. Ke2 {[%clk 0:00:17.9]} 39... f5 {[%clk 0:00:10.6]}
40. f3 {[%clk 0:00:18.1]} 40... fxe4 {[%clk 0:00:10.7]} 41. fxe4 {[%clk
0:00:19]} 41... Kd7 {[%clk 0:00:09.8]} 42. Ke3 {[%clk 0:00:18.8]} 42... Ra8
{[%clk 0:00:09.8]} 43. Kf4 {[%clk 0:00:04.6]} 43... Kd6 {[%clk 0:00:06.3]} 44.
e5+ {[%clk 0:00:01.8]} 44... Kd7 {[%clk 0:00:05.9]} 45. Ke4 {[%clk 0:00:01.7]}
45... Bd5+ {[%clk 0:00:05.4]} 46. Kf5 {[%clk 0:00:02.2]} 46... Bf7 {[%clk
0:00:01.3]} 47. g4 {[%clk 0:00:01.2]} 47... g6+ {[%clk 0:00:01.8]} 48. Kf6
{[%clk 0:00:01.6]} 48... Be6 {[%clk 0:00:01.2]} 49. Kg7 {[%clk 0:00:02]} 49...
Bxg4 {[%clk 0:00:01.2]} 50. Kxh6 {[%clk 0:00:02.6]} 50... Be6 {[%clk 0:00:01.8]}
51. Kxg6 {[%clk 0:00:02.9]} 51... Bd5 {[%clk 0:00:02.7]} 52. Kf6 {[%clk
0:00:03.3]} 52... Rf8+ {[%clk 0:00:03]} 53. Kg5 {[%clk 0:00:03.6]} 53... Rg8+
{[%clk 0:00:03.5]} 54. Kf4 {[%clk 0:00:04]} 54... Rh8 {[%clk 0:00:04]} 55. Kg3
{[%clk 0:00:03.7]} 55... Rg8+ {[%clk 0:00:03.6]} 56. Kf2 {[%clk 0:00:04.2]}
56... Rf8+ {[%clk 0:00:04]} 57. Ke2 {[%clk 0:00:04.2]} 57... Ra8 {[%clk
0:00:04.9]} 58. h3 {[%clk 0:00:04.4]} 58... Rh8 {[%clk 0:00:05.1]} 59. a4 {[%clk
0:00:04.6]} 59... Rg8 {[%clk 0:00:05.3]} 60. a5 {[%clk 0:00:04.3]} 60... Rg2+
{[%clk 0:00:05.7]} 61. Ke3 {[%clk 0:00:04.2]} 61... Rg3+ {[%clk 0:00:05.5]} 62.
Kd2 {[%clk 0:00:04.7]} 62... Rg2+ {[%clk 0:00:06.1]} 63. Kc1 {[%clk 0:00:04.6]}
63... Ra2 {[%clk 0:00:06.6]} 64. h4 {[%clk 0:00:04.3]} 64... Ke6 {[%clk
0:00:06.6]} 65. h5 {[%clk 0:00:04.2]} 65... Kf5 {[%clk 0:00:06.5]} 66. Rg3
{[%clk 0:00:04]} 66... Rh2 {[%clk 0:00:06]} 67. a6 {[%clk 0:00:03.8]} 67... Rxh5
{[%clk 0:00:05.5]} 68. a7 {[%clk 0:00:04.2]} 68... Rh8 {[%clk 0:00:06]} 69. Ra3
{[%clk 0:00:04]} 69... Ra8 {[%clk 0:00:05.7]} 70. Kd2 {[%clk 0:00:04.4]} 70...
Ke4 {[%clk 0:00:05.9]} 71. Kc3 {[%clk 0:00:04.8]} 71... Kf5 {[%clk 0:00:05.4]}
72. Ra6 {[%clk 0:00:04.9]} 72... Ke6 {[%clk 0:00:05.6]} 73. b5 {[%clk
0:00:05.5]} 73... Kd7 {[%clk 0:00:05.9]} 74. bxc6+ {[%clk 0:00:05.4]} 74... Bxc6
{[%clk 0:00:05.9]} 75. Kc4 {[%clk 0:00:06.1]} 75... Kc7 {[%clk 0:00:05.5]} 76.
Kc5 {[%clk 0:00:06.5]} 76... Bb7 {[%clk 0:00:05.5]} 77. Ra1 {[%clk 0:00:05.7]}
77... Be4 {[%clk 0:00:06]} 78. d5 {[%clk 0:00:05.9]} 78... Kb7 {[%clk 0:00:06]}
79. e6 {[%clk 0:00:04.1]} 79... Rc8+ {[%clk 0:00:05.4]} 80. Kd4 {[%clk
0:00:04.6]} 80... Bf3 {[%clk 0:00:05.1]} 81. Ke5 {[%clk 0:00:03.3]} 81... Ka8
{[%clk 0:00:04.4]} 82. d6 {[%clk 0:00:01.8]} 82... Rc5+ {[%clk 0:00:04.4]} 83.
Kf6 {[%clk 0:00:02.4]} 83... Bg4 {[%clk 0:00:03.8]} 84. e7 {[%clk 0:00:02.7]}
84... Bd7 {[%clk 0:00:03.5]} 85. Rb1 {[%clk 0:00:01.9]} 85... Kxa7 {[%clk
0:00:03]} 86. Rg1 {[%clk 0:00:02.4]} 86... Rf5+ {[%clk 0:00:02.2]} 87. Kg7
{[%clk 0:00:02]} 87... Rd5 {[%clk 0:00:02.4]} 88. Rc1 {[%clk 0:00:01.4]} 88...
Rxd6 {[%clk 0:00:02.2]} 89. Rc7+ {[%clk 0:00:01.9]} 1-0